bitfinex/quotes_ETHUSD_20251107
["timestamp","ask_amount","ask_price","bid_price","bid_amount"]
[1762528301753,3.02359686,3307.4,3307.1,0.005]
[1762528302058,3.02322231,3307.8,3307.1,0.005]
[1762528302291,0.30232223,3307.8,3307.1,0.005]
[1762528302491,0.4756,3308.4,3307.1,0.005]
[1762528302956,3.02370585,3307.2,3307.1,0.005]
[1762528303168,0.405504,3308.3,3307.1,0.005]
[1762528303393,0.4756,3308.2,3307.1,0.005]
[1762528303762,3.02319627,3307.8,3307.1,0.005]
[1762528303954,3.02370585,3307.2,3307.1,0.005]
[1762528304405,3.49930585,3307.2,3307.1,0.005]
[1762528304582,0.4756,3307.2,3307.1,0.005]
[1762528304908,3.49930585,3307.2,3307.1,0.005]
[1762528305057,3.49933566,3307.2,3306.1,0.005]
[1762528305370,3.02462041,3306.2,3306.1,0.005]
[1762528305572,3.65142041,3306.2,3306.1,0.005]
[1762528305765,3.02553551,3305.2,3304.1,0.005]
[1762528306195,3.50113551,3305.2,3304.1,0.005]
[1762528306397,3.02553551,3305.2,3304.1,0.005]
[1762528306703,4.10622546,3305.2,3304.1,0.005]
[1762528306898,1.08068995,3305.2,3304.1,0.005]
[1762528307055,3.50113551,3305.2,3304.1,0.005]
[1762528308917,0.4756,3305.2,3304.1,0.005]
[1762528309055,0.4756,3305.1,3304.1,0.005]
[1762528309258,3.02645118,3304.2,3304.1,0.005]
[1762528309665,3.50205118,3304.2,3304.1,0.005]
[1762528309864,0.95547427,3304.2,3304.1,0.005]
[1762528310090,0.4756,3304.8,3304.1,0.005]
[1762528310294,3.02509249,3305.7,3304.1,0.005]
[1762528310295,3.02576656,3305.0,3304.1,0.005]
[1762528310495,3.02588483,3304.9,3304.1,0.005]
[1762528310800,3.02634509,3304.4,3303.3,0.001]
[1762528310981,3.50113551,3305.2,3303.3,0.001]
[1762528310982,0.4756,3304.8,3303.3,0.001]
[1762528311294,0.4756,3305.1,3303.3,0.001]
[1762528311482,3.0262357,3304.5,3303.3,0.001]
[1762528311658,0.4756,3305.0,3303.3,0.30434344]
[1762528311876,3.02638335,3304.3,3303.3,0.001]
[1762528312109,0.4756,3305.0,3303.3,0.001]
[1762528312110,3.02581016,3304.9,3303.3,0.001]
[1762528312310,0.4756,3304.8,3303.3,0.001]
[1762528312624,3.02624507,3304.5,3303.3,0.001]
[1762528312924,3.50153621,3304.8,3303.3,0.001]
[1762528312925,0.4756,3304.8,3303.3,0.001]
[1762528313076,0.1852,3305.3,3303.3,0.001]
[1762528313077,0.095,3303.4,3303.3,0.001]
[1762528313808,0.5706,3303.4,3303.3,0.001]
[1762528314180,3.59778411,3303.4,3303.3,0.001]
[1762528314574,0.5706,3303.4,3303.3,0.001]
[1762528314930,0.1852,3304.6,3303.4,9.523729]
[1762528315080,3.02627459,3304.4,3303.5,3.7641669]
[1762528315279,0.4756,3304.5,3303.6,2.578283]
[1762528315563,0.4756,3304.5,3303.3,0.001]
[1762528315689,0.4756,3304.5,3304.0,0.1512]
[1762528315889,3.02654278,3304.1,3304.0,0.1512]
[1762528316104,3.02648687,3304.2,3303.3,0.001]
[1762528316296,0.1512,3304.4,3303.8,0.1512]
[1762528316617,3.02669009,3304.0,3303.8,0.1512]
[1762528316818,0.4756,3304.3,3303.8,0.1512]
[1762528316976,0.4756,3304.2,3303.8,0.1512]
[1762528317315,0.4756,3304.2,3303.3,0.001]
[1762528317914,3.02701705,3303.6,3303.3,0.001]
[1762528318114,0.4756,3304.2,3303.3,0.001]
[1762528318282,3.02687707,3303.8,3303.3,0.001]
[1762528318482,3.02700084,3303.6,3303.3,0.001]
[1762528318694,0.4756,3303.7,3303.3,0.001]
[1762528318976,3.02709247,3303.5,3301.1,0.005]
[1762528319373,0.1852,3302.2,3301.1,0.005]
[1762528319477,0.1852,3302.2,3301.2,2.225514]
[1762528319676,0.1852,3302.2,3301.2,2.1285]
[1762528320011,0.1852,3302.2,3301.1,0.005]
[1762528320383,0.1852,3302.7,3301.3,3.02902359]
[1762528320622,0.1852,3302.7,3301.4,18.5101625]
[1762528320806,0.1852,3302.7,3301.5,13.53388104]
[1762528321108,0.1852,3303.7,3302.7,3.955113]
[1762528321313,0.1852,3303.7,3302.2,3.02821731]
[1762528321601,0.005,3303.9,3302.3,26.782865]
[1762528321826,0.005,3303.9,3302.4,6.1840675]
[1762528322003,1.259712,3303.7,3301.6,0.1939]
[1762528322202,0.4756,3303.8,3301.6,0.1939]
[1762528322203,0.4756,3303.8,3301.7,2.42489]
[1762528322416,3.02755918,3303.0,3301.7,2.42489]
[1762528322590,0.4756,3303.7,3301.7,2.42489]
[1762528322795,0.4756,3303.7,3301.8,0.4762]
[1762528322991,0.4756,3303.7,3301.9,2.82897]
[1762528323220,0.4756,3303.7,3301.9,0.290109]
[1762528323221,3.02843841,3302.1,3301.9,0.290109]
[1762528323526,3.02731063,3303.3,3300.4,0.4762]
[1762528323843,0.4756,3303.6,3301.2,3.278618]
[1762528324041,0.005,3303.9,3301.3,0.03029109]
[1762528324042,1.259712,3303.3,3301.3,0.03029109]
[1762528324261,0.4756,3303.2,3301.4,11.008197]
[1762528324568,3.02745905,3303.1,3301.5,9.5357507]
[1762528324862,0.4756,3303.2,3301.5,1.1008197]
[1762528324863,3.02761942,3303.0,3301.5,1.1008197]
[1762528325021,0.4945,3303.1,3301.1,0.005]
[1762528325219,0.4945,3303.5,3301.2,3.705738]
[1762528325562,0.4945,3303.5,3301.3,0.03029109]
[1762528325768,0.4945,3303.5,3301.4,0.405504]
[1762528325934,0.4945,3303.5,3301.5,24.213282]
[1762528326252,0.4945,3303.5,3301.6,22.5627736]
[1762528326458,0.4945,3303.5,3301.7,8.319223]
[1762528326654,0.4945,3303.5,3301.8,2.140759]
[1762528326953,0.4945,3303.5,3301.9,3.318529]
[1762528327128,3.02743583,3303.2,3302.0,2.602746]
[1762528327326,0.4945,3303.5,3302.9,0.1512]
[1762528327327,3.02725082,3303.4,3302.9,0.1512]
[1762528327532,0.6457,3303.5,3302.9,0.1512]
[1762528327730,3.02738664,3303.2,3302.9,0.1512]
[1762528327919,3.02745905,3303.1,3300.9,3.02944259]
[1762528328250,1.754212,3303.3,3301.2,8.421294]
[1762528328458,3.02822773,3302.3,3301.3,0.8426294]
[1762528328655,3.02775544,3302.8,3301.4,8.420888]
[1762528328876,0.6699212,3303.2,3301.4,8.420888]
[1762528328877,3.02842056,3302.1,3301.4,8.420888]
[1762528329049,0.4945,3303.1,3301.4,8.420888]
[1762528329356,0.4945,3303.0,3301.8,2.0]
[1762528329561,3.02825692,3302.3,3301.8,2.0]
[1762528329733,3.02837939,3302.1,3301.8,2.0]
[1762528330058,3.0273674,3303.2,3301.8,2.0]
[1762528330243,3.02854216,3302.0,3301.8,2.0]
[1762528330447,3.02843889,3302.1,3301.8,2.0]
[1762528330672,0.4945,3302.8,3301.8,2.0]
[1762528330871,3.02843305,3302.1,3301.8,2.0]
[1762528331072,3.02782571,3302.7,3301.8,2.0]
[1762528331073,3.02855931,3301.9,3301.8,2.0]
[1762528331245,0.4945,3302.6,3301.8,2.0]
[1762528331580,3.02855931,3301.9,3301.8,2.0]
[1762528331803,0.1276,3302.7,3301.8,2.0]
[1762528332091,3.02709247,3303.5,3301.9,0.03028559]
[1762528332406,0.6221,3303.6,3301.8,2.2]
[1762528332407,3.02718411,3303.4,3301.8,2.2]
[1762528332696,3.02799546,3302.6,3301.8,2.2]
[1762528332844,3.02807967,3302.5,3301.9,0.22]
[1762528333045,0.4945,3303.2,3301.9,0.22]
[1762528333489,0.4945,3303.2,3301.8,2.0]
[1762528333490,1.259712,3303.0,3301.8,2.0]
[1762528333672,0.4945,3302.9,3301.8,2.0]
[1762528333882,3.02773404,3302.8,3301.8,2.0]
[1762528334060,3.02855931,3301.9,3301.8,2.0]
[1762528334443,3.02855931,3301.9,3301.1,0.005]
[1762528334444,3.0292015,3301.2,3301.1,0.005]
[1762528334780,0.30285593,3301.8,3301.1,0.005]
[1762528334988,0.4945,3302.6,3301.2,9.730837]
[1762528335150,0.4945,3302.6,3301.1,0.005]
[1762528336214,3.02856289,3301.9,3301.1,0.005]
[1762528336428,0.4945,3302.6,3301.2,5.234046]
[1762528336716,0.1276,3303.6,3301.8,3.22841195]
[1762528336875,3.02745322,3303.2,3301.9,10.86050135]
[1762528337065,0.4945,3303.5,3302.0,10.36490997]
[1762528337066,3.02729113,3303.3,3302.0,10.36490997]
[1762528337262,0.4945,3303.5,3301.9,0.4955]
[1762528337499,3.0272975,3303.3,3302.0,2.576651]
[1762528337809,3.02828417,3302.2,3302.1,0.1512]
[1762528338098,3.02828417,3302.2,3301.1,0.005]
[1762528338099,0.1512,3302.1,3301.4,0.1512]
[1762528338322,0.6457,3302.1,3301.4,0.1512]
[1762528338476,0.6457,3302.1,3301.1,0.005]
[1762528338477,3.0292015,3301.2,3301.1,0.005]
[1762528338680,3.63503116,3301.2,3301.1,0.005]
[1762528338913,4.12953116,3301.2,3301.1,0.005]
[1762528339291,3.5237015,3301.2,3301.1,0.005]
[1762528339935,1.259712,3301.8,3301.1,0.005]
[1762528339936,0.4945,3301.8,3301.1,0.005]
[1762528340087,3.0292015,3301.2,3301.1,0.005]
[1762528340279,0.4945,3301.7,3301.1,0.005]
[1762528340590,0.80558682,3302.4,3301.1,0.005]
[1762528340591,0.4945,3302.4,3301.1,0.005]
[1762528340795,0.4945,3302.3,3301.1,0.005]
[1762528341386,3.0288256,3301.7,3301.1,0.005]
[1762528341614,0.30288256,3301.7,3301.1,0.005]
[1762528341827,0.4945,3302.3,3301.1,0.005]
[1762528342031,0.4945,3302.2,3301.1,0.005]
[1762528342511,0.4945,3302.7,3301.2,3.432148]
[1762528342715,1.259712,3302.5,3301.1,0.005]
[1762528343040,1.259712,3302.4,3301.1,0.005]
[1762528343189,0.42877211,3302.3,3301.1,0.005]
[1762528343528,0.4945,3302.4,3301.1,0.005]
[1762528343684,0.4945,3302.4,3301.1,3.03420632]
[1762528343889,0.4945,3302.8,3301.2,3.851866]
[1762528344104,3.02836411,3302.2,3301.2,3.851866]
[1762528344335,0.4945,3302.8,3301.2,4.464405]
[1762528344491,0.4945,3303.3,3301.3,1.44516611]
[1762528344692,0.65446358,3303.9,3301.6,5.95046479]
[1762528344890,0.65446358,3303.9,3301.4,7.63007]
[1762528344891,0.005,3303.9,3302.0,1.259712]
[1762528345111,0.4945,3303.8,3302.1,7.689546]
[1762528345297,0.4945,3303.8,3301.8,0.4955]
[1762528345298,3.02782252,3302.8,3301.8,0.4955]
[1762528345489,3.02802032,3302.5,3301.3,3.72435654]
[1762528345727,0.60554337,3302.8,3301.4,2.860619]
[1762528345927,3.02773413,3302.8,3301.6,3.0287747]
[1762528346149,0.80558682,3304.4,3301.6,3.02875749]
[1762528346315,0.4945,3304.4,3301.9,0.405504]
[1762528346515,0.4945,3304.4,3302.0,26.782865]
[1762528346753,0.4945,3304.4,3302.2,0.405504]
[1762528347059,0.1852,3304.6,3302.4,0.405504]
[1762528347224,0.005,3304.9,3302.7,0.405504]
[1762528347426,0.005,3304.9,3303.7,3.02690232]
[1762528347733,0.0042,3303.9,3303.8,2.3062]
[1762528348082,0.0042,3303.9,3303.7,2.3062]
[1762528348344,0.0042,3303.9,3303.8,5.578654]
[1762528348519,0.0042,3303.9,3303.8,1.2045654]
[1762528348720,0.0042,3303.9,3303.8,4.231383]
[1762528348926,0.0042,3303.9,3303.8,11.03673717]
[1762528349130,0.005,3304.9,3303.8,11.03673717]
[1762528349131,0.005,3304.9,3304.0,0.405504]
[1762528349312,0.005,3304.9,3304.1,4.034428]
[1762528349515,0.005,3304.9,3304.2,6.3404498]
[1762528349750,0.005,3304.9,3304.8,3.22570171]
[1762528349967,0.005,3304.9,3304.8,4.15696472]
[1762528350138,0.005,3306.9,3305.1,3.02557292]
[1762528350470,3.0246791,3306.2,3304.3,0.1998]
[1762528350630,3.02551651,3305.3,3304.4,2.634082]
[1762528350947,0.4995,3305.9,3304.4,0.2634082]
[1762528351111,3.02524088,3305.6,3304.1,3.02654278]
[1762528351312,0.4995,3305.9,3304.1,3.071467]
[1762528351547,3.02498638,3305.8,3304.1,2.802154]
[1762528351718,0.4945,3305.7,3304.2,2.613493]
[1762528351917,3.0251694,3305.6,3303.8,0.4955]
[1762528352150,3.37722786,3305.5,3303.9,2.714504]
[1762528352457,0.005,3305.9,3304.1,5.95046479]
[1762528352639,0.005,3305.9,3304.3,3.02635959]
[1762528352838,0.005,3305.9,3305.8,3.02498638]
[1762528353038,0.005,3305.9,3305.8,0.1998]
[1762528353215,0.005,3305.9,3305.1,0.4955]
[1762528353543,0.005,3305.9,3305.2,4.251688]
[1762528353933,0.1898,3305.9,3304.6,0.1998]
[1762528354119,0.005,3305.9,3304.7,11.335767]
[1762528354319,0.005,3305.9,3304.8,15.2296367]
[1762528354545,0.005,3305.9,3304.9,8.262391]
[1762528354745,3.02990062,3305.9,3305.0,5.281832]
[1762528354953,0.005,3305.9,3305.1,2.004238]
[1762528355139,0.005,3305.9,3304.9,0.4955]
[1762528355308,0.005,3305.9,3305.0,4.808836]
[1762528355511,0.005,3305.9,3305.0,2.407701]
[1762528355711,0.005,3305.9,3305.1,18.950096]
[1762528355919,0.005,3305.9,3305.2,10.487103]
[1762528356153,0.005,3305.9,3304.9,0.35213927]
[1762528356358,0.005,3305.9,3305.0,2.765879]
[1762528356568,0.005,3305.9,3305.1,4.656044]
[1762528356862,0.005,3305.9,3305.0,0.4645]
[1762528357087,0.005,3305.9,3305.1,3.15869827]
[1762528357234,0.005,3305.9,3305.0,0.4645]
[1762528357235,0.005,3305.9,3305.2,15.092754]
[1762528357434,0.005,3305.9,3305.5,3.02523599]
[1762528357635,0.005,3305.9,3305.8,3.02498638]
[1762528357880,0.005,3305.9,3305.8,5.54938038]
[1762528358039,0.005,3305.9,3305.8,7.98139638]
[1762528358576,0.005,3305.9,3305.8,4.95641]
[1762528358738,0.005,3305.9,3305.8,6.12304938]
[1762528358935,0.005,3305.9,3305.8,6.67975338]
[1762528359438,0.005,3305.9,3305.8,3.249263]
[1762528359667,0.005,3305.9,3305.8,11.465513]
[1762528359864,0.005,3305.9,3304.9,3.02572848]
[1762528360175,0.005,3305.9,3305.0,9.221662]
[1762528360475,0.005,3305.9,3305.0,9.686162]
[1762528360793,0.005,3305.9,3305.1,3.999978]
[1762528361080,0.005,3305.9,3304.6,0.1998]
[1762528361239,3.02507789,3305.7,3303.7,0.4645]
[1762528361438,3.0251694,3305.6,3303.8,8.205633]
[1762528361671,3.02572749,3305.0,3303.8,8.205633]
[1762528361849,3.02565443,3305.1,3303.9,3.02666891]
[1762528362047,0.1848,3305.2,3304.0,8.613145]
[1762528362241,0.1848,3305.2,3304.1,9.4743595]
[1762528362242,3.02562706,3305.1,3304.1,9.4743595]
[1762528362444,3.49281232,3305.1,3303.4,0.1998]
[1762528362639,3.02619924,3304.5,3303.4,3.22696906]
[1762528362974,0.4671,3305.0,3303.5,3.077238]
[1762528363175,3.02590454,3304.8,3303.6,3.02692584]
[1762528363336,0.1848,3305.2,3303.7,8.907624]
[1762528363541,0.1848,3305.2,3303.8,0.9372124]
[1762528363870,0.1848,3305.2,3303.9,5.363157]
[1762528364063,0.4671,3305.1,3303.4,0.1998]
[1762528364263,0.4671,3305.1,3303.1,0.005]
[1762528364264,3.02581016,3304.9,3303.1,0.005]
[1762528364472,3.2121674,3303.2,3303.1,0.005]
[1762528364670,0.80873952,3303.2,3303.1,0.005]
[1762528364855,3.21189326,3303.5,3303.1,0.005]
[1762528365063,3.0265728,3304.1,3303.1,0.005]
[1762528365064,0.1848,3303.9,3303.1,0.005]
[1762528365496,3.02697909,3303.7,3303.1,0.005]
[1762528365661,3.02715545,3303.5,3303.1,0.005]
[1762528365862,3.0269784,3303.7,3303.1,0.005]
[1762528366057,3.02709825,3303.5,3303.1,0.005]
[1762528366259,3.0273674,3303.2,3302.1,0.005]
[1762528366599,1.259712,3303.5,3302.1,0.005]
[1762528366800,0.4671,3303.5,3302.1,0.005]
[1762528366971,3.20808417,3302.2,3302.1,0.005]
[1762528367297,0.6397812,3303.4,3302.1,0.005]
[1762528367497,0.4671,3303.3,3302.1,0.005]
[1762528368198,0.4671,3303.3,3303.1,0.001]
[1762528368399,3.0273674,3303.2,3303.1,0.001]
[1762528368599,3.37681414,3303.2,3303.1,0.001]
[1762528368784,3.84391414,3303.2,3303.1,0.001]
[1762528368986,0.81654674,3303.2,3303.1,0.001]
[1762528369314,3.4944674,3303.2,3303.1,0.001]
[1762528369773,0.1512,3303.3,3303.1,0.001]
[1762528369971,0.1512,3303.6,3303.1,0.001]
[1762528370294,0.1512,3303.9,3303.3,0.1512]
[1762528370603,0.4742,3304.8,3303.1,0.001]
[1762528370827,3.02576863,3305.0,3303.1,0.001]
[1762528370967,3.026268,3304.4,3303.1,0.001]
[1762528371169,3.2113674,3303.2,3303.1,0.001]
[1762528372842,1.06518444,3305.3,3303.1,0.001]
[1762528372999,0.80558682,3306.3,3303.2,13.807934]
[1762528373204,0.475,3305.4,3303.3,0.4839]
[1762528373405,0.475,3305.4,3303.4,19.830441]
[1762528373648,0.48,3304.9,3303.1,0.001]
[1762528373939,3.02608485,3304.6,3303.1,0.001]
[1762528374129,3.02635959,3304.3,3303.1,0.001]
[1762528374326,0.475,3304.2,3303.1,0.001]
[1762528374649,3.02724942,3303.4,3303.1,0.001]
[1762528374940,0.475,3304.2,3303.1,0.001]
[1762528375979,3.2113674,3303.2,3303.1,0.001]
[1762528376178,0.184,3303.2,3303.1,0.001]
[1762528376379,8.97673,3304.5,3303.1,0.001]
[1762528376380,0.475,3303.6,3303.1,0.001]
[1762528376589,0.184,3303.7,3303.1,0.001]
[1762528376797,0.475,3305.0,3303.2,2.242722]
[1762528377001,0.475,3304.8,3303.1,0.4587]
[1762528377282,3.02599328,3304.7,3303.1,0.4587]
[1762528377480,0.35009933,3304.6,3303.4,3.02717074]
[1762528377780,0.005,3304.9,3303.7,3.02690877]
[1762528377994,0.005,3304.9,3303.8,20.538224]
[1762528378178,0.005,3304.9,3303.9,17.421422]
[1762528378372,0.005,3304.9,3304.0,7.770878]
[1762528378545,0.005,3304.9,3304.3,3.0262924]
[1762528378746,0.005,3304.9,3304.4,4.21157]
[1762528378948,0.005,3304.9,3304.5,9.819107]
[1762528379191,0.005,3304.9,3304.2,0.4839]
[1762528379353,0.005,3304.9,3304.3,3.02629376]
[1762528379723,0.005,3304.9,3304.4,0.35101938]
[1762528379905,0.005,3304.9,3304.5,2.241384]
[1762528380105,0.005,3304.9,3304.8,0.1851]
[1762528380282,0.005,3304.9,3304.8,3.69490171]
[1762528380479,0.005,3304.9,3304.8,6.94386471]
[1762528380717,0.005,3304.9,3304.8,3.27618]
[1762528380930,0.005,3304.9,3304.8,6.69310071]
[1762528381222,0.005,3304.9,3304.2,0.1851]
[1762528381518,0.005,3304.9,3304.3,2.642384]
[1762528381825,3.02598461,3304.8,3303.5,0.1851]
[1762528381981,3.02651757,3304.2,3303.5,0.1851]
[1762528382189,0.48,3304.9,3303.5,0.1851]
[1762528382520,0.005,3304.9,3303.6,9.039476]
[1762528382723,0.48,3304.9,3303.1,0.001]
[1762528382896,0.48,3304.9,3303.2,2.666161]
[1762528383087,0.005,3304.9,3303.3,6.4409034]
[1762528383328,0.005,3304.9,3303.6,0.405504]
[1762528383652,0.005,3304.9,3304.8,0.1851]
[1762528383806,0.005,3304.9,3304.8,2.193807]
[1762528384132,0.005,3304.9,3304.8,3.50980171]
[1762528384633,0.005,3304.9,3304.8,6.34585971]
[1762528385052,0.1798,3306.8,3304.8,3.319958]
[1762528385327,0.005,3306.9,3305.8,3.21268638]
[1762528385490,0.005,3306.9,3304.9,27.9767648]
[1762528385491,0.1379,3306.5,3304.9,0.7883958]
[1762528385691,3.02462417,3306.2,3305.0,27.239265]
[1762528385929,0.1379,3306.5,3305.1,26.782865]
[1762528386133,0.1379,3306.5,3305.2,2.25539935]
[1762528386338,0.005,3306.9,3305.3,13.912418]
[1762528386642,0.1379,3306.7,3305.4,12.006001]
[1762528386791,3.02442611,3306.5,3305.5,4.456849]
[1762528386988,3.02523085,3305.6,3304.5,0.1877]
[1762528387208,0.478,3305.9,3304.6,5.006079]
[1762528387209,0.007,3305.9,3304.6,5.006079]
[1762528387416,0.002,3304.9,3304.8,3.02582976]
[1762528387657,0.002,3304.9,3304.8,12.69754376]
[1762528387824,0.002,3304.9,3304.8,28.00472176]
[1762528388027,0.002,3304.9,3304.8,25.97050676]
[1762528388225,0.002,3304.9,3304.5,0.1877]
[1762528388447,0.002,3304.9,3304.6,7.017716]
[1762528388637,0.002,3304.9,3304.7,4.830333]
[1762528388846,0.002,3304.9,3304.1,0.1877]
[1762528389146,0.002,3304.9,3304.2,5.422339]
[1762528389453,0.002,3304.9,3304.8,3.02590171]
[1762528389770,0.007,3305.9,3305.8,3.02498638]
[1762528389912,0.007,3305.9,3305.2,0.405504]
[1762528390225,0.007,3305.9,3305.3,26.782865]
[1762528390423,3.02507789,3305.7,3304.5,3.02614225]
[1762528390613,0.478,3305.9,3304.6,0.34825423]
[1762528390814,0.478,3305.9,3304.7,26.782865]
[1762528391272,0.1512,3305.7,3305.1,0.1512]
[1762528391429,0.007,3305.9,3305.5,0.1512]
[1762528391962,0.478,3305.9,3304.7,0.4564]
[1762528392162,3.03190906,3305.9,3305.5,0.1512]
[1762528392317,3.02498716,3305.8,3305.5,0.1512]
[1762528392517,0.62778237,3305.9,3305.5,0.1512]
[1762528392714,0.007,3305.9,3305.5,0.1512]
[1762528392921,0.007,3305.9,3305.6,12.68478369]
[1762528393130,0.007,3305.9,3305.0,0.4564]
[1762528393336,0.0062,3305.9,3305.1,26.782865]
[1762528393537,0.0062,3305.9,3305.2,26.782865]
[1762528393856,3.02504851,3305.8,3304.7,26.782865]
[1762528394061,0.0062,3305.9,3304.8,29.4611515]
[1762528394365,0.0062,3305.9,3304.9,26.782865]
[1762528394797,3.031154,3305.9,3304.9,26.782865]
[1762528394998,3.02498638,3305.8,3304.9,26.782865]
[1762528395196,3.02523253,3305.6,3304.9,26.782865]
[1762528395397,3.02500606,3305.8,3304.9,26.782865]
[1762528395574,0.0062,3305.9,3304.9,26.782865]
[1762528395995,0.0062,3305.9,3304.9,30.265018]
[1762528396189,0.0062,3305.9,3305.5,3.02518816]
[1762528396531,0.0062,3305.9,3305.8,3.02498638]
[1762528397032,0.005,3306.9,3305.8,16.39534638]
[1762528397334,0.002,3308.4,3306.9,0.405504]
[1762528397510,0.002,3308.4,3307.4,3.02344713]
[1762528397693,0.002,3308.4,3307.5,5.031878]
[1762528397879,0.002,3308.4,3307.6,3.219228]
[1762528398081,0.002,3308.4,3307.8,3.02315738]
[1762528398516,0.002,3308.4,3307.5,0.5031878]
[1762528398719,0.002,3308.4,3307.7,3.02318943]
[1762528398921,0.002,3308.4,3307.8,5.02489438]
[1762528399099,0.002,3308.4,3307.8,22.09904338]
[1762528399309,0.002,3308.4,3307.8,8.416016]
[1762528399512,0.002,3308.4,3307.8,8.65580738]
[1762528399817,0.002,3308.4,3307.8,0.86558074]
[1762528400137,0.002,3308.4,3306.9,3.02390419]
[1762528400138,0.189,3308.1,3306.9,3.02390419]
[1762528400317,0.189,3308.1,3306.9,6.376179]
[1762528400637,0.189,3308.1,3306.3,0.4564]
[1762528400830,3.02315738,3307.8,3306.4,17.184628]
[1762528401036,3.02315738,3307.8,3306.6,3.0242334]
[1762528401254,3.02370563,3307.3,3306.5,1.74842166]
[1762528401397,3.02811268,3307.9,3305.9,0.6441]
[1762528401398,3.02414269,3306.8,3305.9,0.6441]
[1762528401597,0.471,3307.8,3305.5,0.49021882]
[1762528401802,0.471,3307.8,3305.1,0.005]
[1762528401803,0.471,3307.7,3305.6,2.501293]
[1762528402110,1.259712,3307.5,3305.1,0.4614]
[1762528402318,3.02431536,3306.6,3305.5,3.02519586]
[1762528402499,1.259712,3307.5,3305.1,0.4614]
[1762528402500,0.471,3307.4,3305.1,0.4614]
[1762528402699,0.471,3307.4,3305.5,3.02519154]
[1762528402700,3.0242811,3306.6,3305.5,3.02519154]
[1762528402935,3.0242532,3306.7,3306.3,0.1512]
[1762528403253,3.02443745,3306.4,3306.3,0.1512]
[1762528403400,0.1798,3306.7,3306.3,0.1512]
[1762528403839,3.02443745,3306.4,3306.3,0.1512]
[1762528404039,0.65197706,3306.4,3306.3,0.1512]
[1762528404353,0.471,3306.4,3305.1,0.005]
[1762528404561,0.1512,3305.7,3305.2,26.782865]
[1762528404855,3.36153551,3305.2,3305.1,0.005]
[1762528405015,3.02635959,3304.3,3304.2,0.1512]
[1762528405345,0.471,3305.1,3304.1,0.005]
[1762528405555,3.02572671,3305.0,3304.2,2.6637]
[1762528405699,0.1848,3305.2,3304.1,0.005]
[1762528406118,0.6558,3305.2,3304.1,0.005]
[1762528406313,3.68133551,3305.2,3305.1,0.001]
[1762528406541,4.36599443,3305.2,3305.1,0.001]
[1762528407153,1.34045892,3305.2,3305.1,0.001]
[1762528407357,0.6558,3305.2,3305.1,0.001]
[1762528407763,3.68133551,3305.2,3305.1,0.001]
[1762528408463,3.68133551,3305.2,3303.2,3.02728897]
[1762528408464,3.02617832,3304.5,3303.2,3.02728897]
[1762528408630,0.6558,3305.2,3303.5,7.853575]
[1762528408631,3.0257186,3305.0,3303.5,7.853575]
[1762528408836,3.49663038,3305.1,3303.2,3.02729806]
[1762528409053,0.1848,3305.2,3303.2,4.03804]
[1762528409054,0.83914304,3305.0,3303.2,4.03804]
[1762528409234,1.730712,3305.0,3303.2,4.03804]
[1762528409434,0.471,3304.9,3303.2,4.03804]
[1762528409666,0.471,3304.9,3303.2,4.49444]
[1762528409962,3.02596775,3304.8,3303.7,3.02685569]
[1762528410171,0.471,3304.9,3303.8,7.372908]
[1762528410373,0.1848,3305.2,3303.4,3.0271347]
[1762528410374,0.1848,3305.2,3303.9,4.6918948]
[1762528410658,0.1848,3305.2,3304.0,2.1193]
[1762528410659,0.471,3305.1,3304.0,2.1193]
[1762528410823,3.0258248,3304.9,3303.6,3.02699191]
[1762528411159,0.471,3305.1,3304.0,3.02654566]
[1762528411458,0.471,3305.1,3303.5,0.4564]
[1762528411459,3.21039331,3305.2,3304.1,2.928601]
[1762528411654,3.02550306,3305.3,3304.2,3.1920101]
[1762528411856,0.471,3305.7,3304.3,3.186884]
[1762528412060,3.02632759,3304.4,3303.0,0.4564]
[1762528412258,3.4961694,3305.6,3303.2,11.582078]
[1762528412259,3.02622752,3304.5,3303.2,11.582078]
[1762528412559,3.02643065,3304.3,3303.3,2.028915]
[1762528412759,0.471,3304.7,3302.7,0.4574]
[1762528412963,1.259712,3305.5,3302.9,3.02761143]
[1762528412964,3.02666842,3304.0,3302.9,3.02761143]
[1762528413257,3.02664046,3304.0,3302.7,3.48521416]
[1762528413443,3.02664797,3304.0,3302.7,3.48520818]
[1762528413677,0.471,3304.2,3302.7,0.4574]
[1762528413997,0.34969645,3304.6,3303.2,2.222013]
[1762528414291,0.471,3304.5,3302.7,0.4574]
[1762528414458,0.471,3304.5,3302.8,0.03027734]
[1762528414658,3.02637201,3304.3,3303.0,3.027534]
[1762528414870,3.02672721,3303.9,3302.7,0.4574]
[1762528415078,0.1512,3304.0,3303.4,0.1512]
[1762528415483,0.1512,3304.4,3303.8,0.1512]
[1762528415688,3.02532551,3305.5,3303.1,0.5025]
[1762528415689,0.4852,3305.8,3303.1,0.5025]
[1762528415986,0.4852,3305.7,3303.2,12.195158]
[1762528416171,3.02540976,3305.4,3303.3,1.2697658]
[1762528416351,0.4844,3305.7,3304.2,3.02638736]
[1762528416545,0.1798,3306.7,3304.3,6.25605859]
[1762528416759,0.1798,3306.7,3304.4,3.575493]
[1762528416980,3.02991599,3305.9,3304.7,3.02593391]
[1762528417181,0.3209716,3305.8,3304.9,3.02577995]